Workbook

Sheet Acceuil
E7: COMITE INTERMINISTERIEL DE PILOTAGE DE LA POLITIQUE NATIONALE DE DECENTRALISATION ET DE DECONCENTRATION (CIP-PONADEC)
E8: SECRETARIAT PERMANENT
E10: Calcul de l'Indice de bonne Gouvernance Locale (IGL)
F12: Département | G12: ATACORA | I12: Commune | J12: NATITINGOU | O12: Année : | P12: 2019
E17: Informations à saisir par catégorie
G19: Budget | L19: Cadres de Concertation
G20: Conseil Communal | L20: Tutelle
G21: Conseil d'Arrondissement | L21: Marchés
G22: Conseil de Village | L22: Services délégués
G23: Commissions Permanentes | L23: Autres données

Sheet Budget
A1: Retour à l'accueil
A2: Prévision | D2: Réalisation | K2: Autres données financieres
A3: Montant du budget | B3: Recette fiscales | C3: PAI | D3: Dépenses d'investissement | G3: Dépenses totales de fonctionnement | H3: Dépenses d'entretien des équipements et ouvrages | I3: Recettes fiscales | J3: PAI | K3: Montant des ressources propres de l'année 2018 | L3: Montant des ressources propres de l'année 2019 | M3: Montant des cotisations versées à échéance (Intercommunalité et Association de communes) | N3: Montant des cotisations dues à échéance (Intercommunalité et Association de communes)
D4: Ressources propres (Auto financement) | E4: Investissement provenant de la coopération décentralisée | F4: Autres ressources
A5: 851671398 | B5: 222528881 | C5: 2400000000 | D5: 9350860 | E5: 0 | F5: 244161505 | G5: 242359803 | H5: 17585021 | I5: 201593378 | J5: 944975860 | K5: 304526042 | L5: 332683286 | M5: 2970000

Sheet CC
A1: Retour à l'accueil
A2: Tenue des Sessions ordinaires
A3: Nombre de réunions de municipalité tenues | D3: 12
A4: Nombre d'élus du Conseil Communal | D4: 19
A5: Sessions | B5: Nombre d'élus présents | C5: Date début session | D5: Date fin session | E5: Date affichage relevé session | F5: Production du rapport d'activités du Maire | H5: dif | I5: delai
A6: Session N°1 | B6: 19 | C6: 2019-03-27 | D6: 2019-03-28 | E6: 2019-04-05 | F6: OUI | H6: =IF(OR(D6="",E6=""),-1,DATEDIF(D6,E6,"d")) -> 8 | I6: =IF(OR(H6<0,H6>8),0,1) -> 1
A7: Session N°2 | B7: 17 | C7: 2019-06-26 | D7: 2019-06-27 | E7: 2019-07-08 | F7: OUI | H7: =IF(OR(D7="",E7=""),-1,DATEDIF(D7,E7,"d")) -> 11 | I7: =IF(OR(H7<0,H7>8),0,1) -> 0
A8: Session N°3 | B8: 19 | C8: 2019-09-26 | D8: 2019-09-27 | E8: 2019-10-07 | F8: OUI | H8: =IF(OR(D8="",E8=""),-1,DATEDIF(D8,E8,"d")) -> 10 | I8: =IF(OR(H8<0,H8>8),0,1) -> 0
A9: Session N°4 | B9: 18 | C9: 2019-11-26 | D9: 2019-11-28 | E9: 2019-12-09 | F9: OUI | H9: =IF(OR(D9="",E9=""),-1,DATEDIF(D9,E9,"d")) -> 11 | I9: =IF(OR(H9<0,H9>8),0,1) -> 0

Sheet CA
A1: Retour à l'accueil
A2: Arrondissements | B2: Nombre de sessions de conseils d’arrondissement tenues
A3: KOTOPOUNGA | B3: 12
A4: KOUABA | B4: 12
A5: KOUANDATA | B5: 9
A6: PERMA | B6: 12
A7: TCHOUMI-TCHOUMI | B7: 12
A8: NATITINGOU I | B8: 12
A9: NATITINGOU II | B9: 12
A10: NATITINGOU III | B10: 12
A11: PEPORIYAKOU | B11: 9

Sheet CV
A1: Retour à l'accueil
A2: Arrondissements | B2: Villages | C2: Nombre de réunions de conseils de village tenues au cours de l’année | D2: Section Villagoise\urbaine de Gestion Fonctiere (SVGF et SUGF)
D3: Enquetes Publiques Contradictoires (EPC)
D4: Nombre de demandes effectuées | E4: Nombre de demandes réalisées
A5: KOTOPOUNGA | B5: BANGRETAMOU | C5: 4
B6: DOKONDE | C6: 4
B7: FAYOURE | C7: 4
B8: KAMPOUYA | C8: 4
B9: KOTA-MONNONGOU | C9: 4
B10: KOTOPOUNGA | C10: 4
B11: ONSIKOTO | C11: 4
B12: POUYA | C12: 4
B13: SOUROUKOU | C13: 4
B14: TAMPEDEMA | C14: 4
B15: TCHANTANGOU | C15: 4
B16: WETIPOUNGA | C16: 4
B17: YAKPANGOUTINGOU | C17: 4
B18: YARIKOU | C18: 4
A19: KOUABA | B19: DIKOUAN | C19: 4
B20: KATANGINKA | C20: 4
B21: KOUABA | C21: 4
B22: KOUKOUABIRGOU | C22: 4
B23: KOUNITCHANGOU | C23: 4
B24: KOUTANONGOU | C24: 4
B25: KOUWANWANGOU | C25: 4
B26: MOUSSANSAMOU | C26: 4
B27: TAGAHEI | C27: 4
B28: TEDONTE | C28: 4
B29: TIPETI | C29: 4
A30: KOUANDATA | B30: KOUANDATA | C30: 4
B31: KOUATIDABIRGOU | C31: 4
B32: KOUNADORGOU | C32: 4
B33: KOUTIE | C33: 4
B34: TIGNINTI | C34: 4 | D34: 4 | E34: 4
A35: PERMA | B35: GNAGNAMMOU | C35: 4
B36: KOKA | C36: 4
B37: KOUBIRGOU | C37: 4
B38: KOUETENA | C38: 3
B39: KOUNAPEIGOU | C39: 3
B40: KOUPEICO | C40: 4
B41: KOUSSIGOU | C41: 4
B42: PAM-PAM | C42: 4 | D42: 5 | E42: 5
B43: PERMA CENTRE | C43: 4
B44: SINAICIRE | C44: 4
B45: TENOUNKONTE | C45: 4
B46: TEPENTE | C46: 4
B47: TIGNANPETI | C47: 4 | D47: 3 | E47: 3
A48: TCHOUMI-TCHOUMI | B48: KOUTIE TCHATIDO | C48: 4
B49: KOUWA N'PONGOU | C49: 3
B50: MOUPEMOU | C50: 4
B51: TAKONTA | C51: 4
B52: TCHOUMI-TCHOUMI | C52: 4
B53: WIMMOU | C53: 4
A54: NATITINGOU I | B54: BAGRI | C54: 4
B55: DJINDJIRE-BERI | C55: 4
B56: KANTCHAGOUTAMOU | C56: 4
B57: SOUNTCHIRANTIKOU | C57: 4
B58: TCHIRIMINA | C58: 4
B59: YOKOSSI | C59: 4 | D59: 1 | E59: 1
A60: NATITINGOU II | B60: BOKORO | C60: 4
B61: BORIYOURE | C61: 4
B62: DASSAKATE | C62: 4
B63: OURKPARBOU | C63: 4
B64: OUROUBONNA | C64: 4
B65: SANTA | C65: 4
A66: NATITINGOU III | B66: BERECINGOU | C66: 4
B67: DIDAPOUMBOR | C67: 4
B68: KANTABORIFA | C68: 4
B69: KOUSSANTIKOU | C69: 4
B70: OURBOUGA | C70: 4
B71: WINKE | C71: 4 | D71: 2 | E71: 2
B72: YETAPO | C72: 4 | D72: 1 | E72: 1
B73: YIMPORIMA | C73: 4
A74: PEPORIYAKOU | B74: DITAWAN | C74: 4
B75: DOYAKOU | C75: 4
B76: KOUDENGOU | C76: 4
B77: PEPORIYAKOU | C77: 4
B78: TETANTE | C78: 4
B79: TIKOUANI | C79: 4
B80: TOROUBOU | C80: 4

Sheet CP
A1: Retour à l'accueil
A2: Tenue des sessions ordinaires des commissions permanentes
A3: Commissions permanentes (CP) | B3: Nom de la commission | C3: Effectif des membres | D3: Réunion N°1 | G3: Réunion N°2 | J3: Réunion N°3 | M3: Réunion N°4 | P3: Réunion N°5 | S3: Réunion N°6 | V3: Réunion N°7 | Y3: Réunion N°8 | AB3: Réunion N°9 | AE3: Réunion N°10 | AH3: Réunion N°11 | AK3: Réunion N°12
D4: Nombre de membres presents | E4: Nombre de propositions faites | F4: Nombre de propositions réalisées par le Maire | G4: Nombre de membres presents | H4: Nombre de propositions faites | I4: Nombre de propositions réalisées par le Maire | J4: Nombre de membres presents | K4: Nombre de propositions faites | L4: Nombre de propositions réalisées par le Maire | M4: Nombre de membres presents | N4: Nombre de propositions faites | O4: Nombre de propositions réalisées par le Maire | P4: Nombre de membres presents | Q4: Nombre de propositions faites | R4: Nombre de propositions réalisées par le Maire | S4: Nombre de membres presents | T4: Nombre de propositions faites | U4: Nombre de propositions réalisées par le Maire | V4: Nombre de membres presents | W4: Nombre de propositions faites | X4: Nombre de propositions réalisées par le Maire | Y4: Nombre de membres presents | Z4: Nombre de propositions faites | AA4: Nombre de propositions réalisées par le Maire | AB4: Nombre de membres presents | AC4: Nombre de propositions faites | AD4: Nombre de propositions réalisées par le Maire | AE4: Nombre de membres presents | AF4: Nombre de propositions faites | AG4: Nombre de propositions réalisées par le Maire | AH4: Nombre de membres presents | AI4: Nombre de propositions faites | AJ4: Nombre de propositions réalisées par le Maire | AK4: Nombre de membres presents | AL4: Nombre de propositions faites | AM4: Nombre de propositions réalisées par le Maire
A5: CP N°1 | B5: Commission des Affaires Economiques et Financieres (CAEF) | C5: 3 | D5: 3 | E5: 3 | F5: 3 | G5: 3 | H5: 2 | I5: 2 | J5: 3 | K5: 4 | L5: 3 | M5: 3 | N5: 2 | O5: 2 | P5: 3 | Q5: 1 | R5: 1 | S5: 3 | T5: 3 | U5: 3 | V5: 3 | W5: 2 | X5: 1 | Y5: 3 | Z5: 2 | AA5: 2 | AB5: 3 | AC5: 1 | AD5: 1 | AE5: 3 | AF5: 4 | AG5: 3 | AH5: 3 | AI5: 2 | AJ5: 2 | AK5: 3 | AL5: 3 | AM5: 3 | AP5: =C5*COUNTA(D5,G5,J5,M5,S5,V5,Y5,AB5,AE5,AH5,AK5) -> 33
A6: CP N°2 | B6: Commission des Affaires Domaniales et Environnementales (CADE) | C6: 3 | D6: 3 | E6: 2 | F6: 2 | G6: 3 | H6: 4 | I6: 2 | J6: 3 | K6: 3 | L6: 3 | M6: 3 | N6: 1 | O6: 1 | P6: 3 | Q6: 2 | R6: 2 | S6: 3 | T6: 4 | U6: 3 | V6: 3 | W6: 2 | X6: 1 | Y6: 3 | Z6: 5 | AA6: 4 | AB6: 3 | AC6: 3 | AD6: 2 | AE6: 3 | AF6: 1 | AG6: 1 | AH6: 3 | AI6: 2 | AJ6: 1 | AK6: 3 | AL6: 4 | AM6: 3 | AP6: 33
A7: CP N°3 | B7: Commission des Affaires Sociales et Culturelles (CASC) | C7: 3 | D7: 3 | E7: 2 | F7: 1 | G7: 3 | H7: 1 | I7: 1 | J7: 3 | K7: 2 | L7: 1 | M7: 3 | N7: 1 | O7: 1 | P7: 3 | Q7: 3 | R7: 2 | S7: 3 | T7: 2 | U7: 2 | V7: 3 | W7: 1 | X7: 1 | Y7: 3 | Z7: 2 | AA7: 1 | AB7: 3 | AC7: 2 | AD7: 2 | AE7: 3 | AF7: 4 | AG7: 3 | AH7: 3 | AI7: 2 | AJ7: 1 | AK7: 3 | AL7: 1 | AM7: 1 | AP7: 33
A8: CP N°4 | B8: Commission Eau Hygiène Assainissement (CEHA) | C8: 2 | D8: 2 | E8: 4 | F8: 3 | G8: 2 | H8: 3 | I8: 1 | J8: 2 | K8: 4 | L8: 3 | M8: 2 | N8: 2 | O8: 1 | P8: 2 | Q8: 1 | R8: 1 | S8: 2 | T8: 3 | U8: 1 | V8: 2 | W8: 2 | X8: 1 | Y8: 2 | Z8: 4 | AA8: 2 | AB8: 2 | AC8: 2 | AD8: 2 | AE8: 2 | AF8: 1 | AG8: 1 | AH8: 2 | AI8: 3 | AJ8: 1 | AK8: 2 | AL8: 1 | AM8: 1 | AP8: 22
A9: CP N°5 | B9: Commission Economie Locale Artisanat et Tourisme (CELAT) | C9: 2 | D9: 2 | E9: 3 | F9: 3 | G9: 2 | H9: 2 | I9: 2 | J9: 2 | K9: 2 | L9: 1 | M9: 2 | N9: 4 | O9: 3 | P9: 2 | Q9: 3 | R9: 2 | S9: 2 | T9: 4 | U9: 3 | V9: 2 | W9: 2 | X9: 2 | Y9: 2 | Z9: 3 | AA9: 2 | AB9: 2 | AC9: 1 | AD9: 1 | AE9: 2 | AF9: 3 | AG9: 1 | AH9: 2 | AI9: 3 | AJ9: 3 | AK9: 2 | AL9: 3 | AM9: 1 | AP9: 22
A10: CP N°6 | B10: Commission des Affaires Sportives , Culturelles et Cultuelles (CASCC) | C10: 2 | D10: 2 | E10: 3 | F10: 1 | G10: 2 | H10: 2 | I10: 1 | J10: 2 | K10: 1 | L10: 1 | M10: 2 | N10: 3 | O10: 1 | P10: 2 | Q10: 3 | R10: 2 | S10: 2 | T10: 3 | U10: 2 | V10: 2 | W10: 1 | X10: 1 | Y10: 2 | Z10: 1 | AA10: 1 | AB10: 2 | AC10: 2 | AD10: 2 | AE10: 2 | AF10: 2 | AG10: 1 | AH10: 2 | AI10: 1 | AJ10: 1 | AK10: 2 | AL10: 1 | AM10: 1 | AP10: 22
A11: CP N°7 | B11: Commission des Relations Extérieures, de la Communication et de la Coopération Décentralisée (CRECCD) | C11: 2 | D11: 2 | E11: 4 | F11: 1 | G11: 2 | H11: 2 | I11: 1 | J11: 2 | K11: 2 | L11: 1 | M11: 2 | N11: 1 | O11: 1 | P11: 2 | Q11: 5 | R11: 2 | S11: 2 | T11: 4 | U11: 1 | V11: 2 | W11: 3 | X11: 1 | Y11: 2 | Z11: 1 | AA11: 1 | AB11: 2 | AC11: 3 | AD11: 1 | AE11: 2 | AF11: 1 | AG11: 1 | AH11: 2 | AI11: 2 | AJ11: 1 | AK11: 2 | AL11: 4 | AM11: 2 | AP11: 22
A12: CP N°8 | AP12: 0
A13: CP N°9 | AP13: 0
A14: CP N°10 | AP14: 0
A15: Nombre | C15: =COUNT(C5:C14) -> 7 | D15: 7 | E15: 7 | F15: 7 | G15: 7 | H15: 7 | I15: 7 | J15: 7 | K15: 7 | L15: 7 | M15: 7 | N15: 7 | O15: 7 | P15: 7 | Q15: 7 | R15: 7 | S15: 7 | T15: 7 | U15: 7 | V15: 7 | W15: 7 | X15: 7 | Y15: 7 | Z15: 7 | AA15: 7 | AB15: 7 | AC15: 7 | AD15: 7 | AE15: 7 | AF15: 7 | AG15: 7 | AH15: 7 | AI15: 7 | AJ15: 7 | AK15: 7 | AL15: 7 | AM15: 7 | AP15: =SUM(AP5:AP14) -> 187
A16: Effectif | C16: =SUM(C5:C14) -> 17 | D16: 17 | E16: 21 | F16: 14 | G16: 17 | H16: 16 | I16: 10 | J16: 17 | K16: 18 | L16: 13 | M16: 17 | N16: 14 | O16: 10 | P16: 17 | Q16: 18 | R16: 12 | S16: 17 | T16: 23 | U16: 15 | V16: 17 | W16: 13 | X16: 8 | Y16: 17 | Z16: 18 | AA16: 13 | AB16: 17 | AC16: 14 | AD16: 11 | AE16: 17 | AF16: 16 | AG16: 11 | AH16: 17 | AI16: 15 | AJ16: 10 | AK16: 17 | AL16: 17 | AM16: 12

Sheet Cadres de Concertation
A1: Retour à l'accueil
A2: Tenue des Cadres de Concertation
A3: Mairie-SDE | F3: Autres Cadres
A4: Effectif des membres du Cadre de Concertation Mairie-SDE | C4: 32 | F4: Education | G4: Eau, Hygiène et Assainissement | H4: Agricole | I4: Maire et OSC | J4: Nutrition | K4: Sport | L4: Autres
A5: Nombre de sessions prévues | C5: 4
A6: Sessions | B6: Effectif présent | C6: Date | D6: Nombre de séances tenues | F6: 4 | G6: 4 | H6: 4 | I6: 4 | J6: 4 | K6: 4 | L6: 8
A7: Session N°1 | B7: 22 | C7: 2019-03-15
A8: Session N°2 | B8: 26 | C8: 2019-06-21
A9: Session N°3 | B9: 19 | C9: 2019-09-13
A10: Session N°4 | B10: 23 | C10: 2019-12-20
A11: Session N°5
A12: Session N°6
A13: Session N°7
A14: Session N°8
A15: Session N°9
A16: Session N°10
A17: Session N°11
A18: Session N°12

Sheet Tutelle
A1: Retour à l'accueil
A2: Participation aux CDCC | E2: Budget communal (Budget primitif) | F2: Le budget est transmis ou pas. | H2: TRANSMIS
A3: Effectif (Maire et ses adjoints) | C3: 3 | F3: Date d'adoption du budget | H3: 2018-12-21
A4: Sessions | B4: Effectif présent | C4: Date début session | D4: Date fin session | F4: Date de transmission du budget à la tutelle | H4: 2018-12-22
A5: CDCC N°1 | B5: 3 | C5: 2019-09-26 | D5: 2019-09-27 | F5: Date d'approbation du budget par la tutelle | H5: 2018-12-28
A6: CDCC N°2 | B6: 3 | C6: 2019-11-28 | D6: 2019-11-29 | E6: Compte Administratif | F6: Le compte administratif est transmis ou pas. | H6: TRANSMIS
A7: Conformité des actes | F7: Date d'adoption du compte administratif de l'année 2018 | H7: 2019-03-27
A8: Nombre d’actes conformes | D8: 204 | F8: Date de transmission à la tutelle | H8: 2019-04-05
A9: Nombre d’actes soumis pour approbation | D9: 204 | F9: Date d'approbation du compte administratif par la tutelle | H9: 2019-05-13

Sheet Marchés
A1: Retour à l'accueil
A2: Type de commune | E2: Commune ordinaire
A3: Plan de passation des marchés publics publiés | E3: OUI
A4: Nombre de marchés publics passés hors plan de passation des marchés | E4: 0
A5: Nombre de marchés conclus dans l'année | E5: 18
A6: Nombre de marchés conclus dans l’année ayant respecté les procédures | E6: 16
A7: Mode de passation | B7: Délai de passation | C7: Marché N°1 | E7: Marché N°2 | G7: Marché N°3 | I7: Marché N°4 | K7: Marché N°5 | M7: Marché N°6 | O7: Marché N°7 | Q7: Marché N°8 | S7: Marché N°9 | U7: Marché N°10 | W7: Marché N°11 | Y7: Marché N°12 | AA7: Marché N°13 | AC7: Marché N°14 | AE7: Marché N°15 | AG7: Marché N°16 | AI7: Marché N°17 | AK7: Marché N°18
C8: construction d'un ouvrage de franchissement sur la rivière de Korifaaka à Ourbona dans le 2ème Arrondissement | E8: Construction d'infrastructure socolaire dans la commune de Natitingou lot1: construction d'un (1) module de trois (3) salles de classes avec bureau et magasin et d'un (1) module de latrines à quatre (4) cabines à l'EPP Tignibti puis d'un (1) module de trois (3) salles de classes avec bureau et magasin et d'un module de latrines à quatre (4) cabines à l'EPP Boriyouré | G8: Construction d'amorce de clôture dans les marchés de Takonta, de Perma et de Yarikou | I8: Entretien courant des ITR Lot1: Axe Pèporiyakou Doyakou | K8: Entretien et réparation de module de trois (3) sallesetavec bureau et magasin à Tchoumi-tchoumi et d'un module de trois salles de classes simple à l'EPP Koussantikou puis entretien d'une infrastructure de santé dans la commune | M8: Construction d'un module de latrine à quatre cabine dans chacune des EPP Koutié Koubérépou Yimporima et Tignapéti et réabilitation du centre des jeunes et loisir de la ville de Natitingou et réparation des FPM en panne | O8: Aquisition de 500 table-bancs 20 mini tables et 40 mini chaises au profit des EPP Souroukou, Koutanongou, Bantina, Tchirmina, Kouterna groupe B et l'EM Groupe B | Q8: Equipement d'infrastructure scolaire en mobilier lot1 | S8: Acquisition des pièce de rechange pour des pompes à motricité humaine | U8: Acquisition et livrason de fourniture de bureau au profit de l'adminstration communale de Natitingou gestion 2019 | W8: Acquisition de quatre ordinaire portatif au profit des service de la mairie | Y8: Maintenance de parc informatique et des logiciel de la mairie de Natitingou | AA8: Fourniture de valeur inactive au profit de la commune de Natitingou | AC8: Recrutement d'une organisation non gouvernenmentale pour l'intermediation dans le domaine de l'approvisionnement en eau potable hygiène et assainissement | AE8: Entretien courant des ITR Lot 2: Axe Yarikou-Takissari | AG8: Construction d'infrastructure socolaire dans la commune de Natitingou lot2: construction d'un (1) module de trois (3) salles de classes avec bureau et magasin et d'un (1) module de latrines à quatre (4) cabines à l'EPP Moussansamou puis d'un (1) module de trois (3) salles de classes avec bureau et magasin et d'un module de latrines à quatre (4) cabines à l'EPP Toroubou | AI8: Construction d'infrastructure socolaire dans la commune de Natitingou lot3: construction d'un (1) module de trois (3) salles de classes avec bureau et magasin et d'un (1) module de latrines à quatre (4) cabines à l'EPP Bèrècingou puis d'un (1) module de trois (3) salles de classes avec bureau et magasin et d'un module de latrines à quatre (4) cabines à l'EPP Tchirimina | AK8: Construction d'infrastructure socolaire dans la commune de Natitingou lot4: construction d'un (1) module de trois (3) salles de classes avec bureau et magasin et d'un (1) module de latrines à quatre (4) cabines à l'EPP Dokondé (Yantaré)
B9: 86 | C9: Type de marchés publics | D9: Nombre de jours consacrés à la passation | E9: Type de marchés publics | F9: Nombre de jours consacrés à la passation | G9: Type de marchés publics | H9: Nombre de jours consacrés à la passation | I9: Type de marchés publics | J9: Nombre de jours consacrés à la passation | K9: Type de marchés publics | L9: Nombre de jours consacrés à la passation | M9: Type de marchés publics | N9: Nombre de jours consacrés à la passation | O9: Type de marchés publics | P9: Nombre de jours consacrés à la passation | Q9: Type de marchés publics | R9: Type de marchés publics | S9: Nombre de jours consacrés à la passation | T9: Type de marchés publics | U9: Nombre de jours consacrés à la passation | V9: Type de marchés publics | W9: Nombre de jours consacrés à la passation | X9: Type de marchés publics | Y9: Nombre de jours consacrés à la passation | Z9: Type de marchés publics | AA9: Type de marchés publics | AB9: Nombre de jours consacrés à la passation | AC9: Type de marchés publics | AD9: Nombre de jours consacrés à la passation | AE9: Type de marchés publics | AF9: Nombre de jours consacrés à la passation | AG9: Type de marchés publics | AH9: Nombre de jours consacrés à la passation | AI9: Type de marchés publics | AJ9: Type de marchés publics | AK9: Nombre de jours consacrés à la passation | AL9: Nombre de jours consacrés à la passation
A10: Appel Offre Ouvert | B10: 46 | C10: Travaux | D10: 44 | E10: Travaux | F10: 44 | G10: Travaux | H10: 45 | I10: travaux | J10: 45 | AE10: travaux | AF10: 45 | AG10: Travaux | AH10: 45 | AI10: Travaux | AJ10: 44 | AK10: Travaux | AL10: 44
A11: Demande de renseignement | B11: 27 | K11: travaux | L11: 27 | M11: travaux | N11: 27 | O11: service | P11: 27 | Q11: service | R11: 27
A12: Demande de cotation | B12: 65 | S12: service | T12: 38 | U12: service | V12: 38 | AA12: service | AB12: 38 | AC12: intellect | AD12: 38
D13: =IF(C10="",0,IF(D10<=$B10,1,0)) -> 1 | F13: =IF(E10="",0,IF(F10<=$B10,1,0)) -> 1 | H13: =IF(G10="",0,IF(H10<=$B10,1,0)) -> 1
D14: =IF(C11="",0,IF(D11<=$B11,1,0)) -> 0 | F14: =IF(E11="",0,IF(F11<=$B11,1,0)) -> 0 | H14: =IF(G11="",0,IF(H11<=$B11,1,0)) -> 0
D15: =IF(C12="",0,IF(D12<=$B12,1,0)) -> 0 | F15: =IF(E12="",0,IF(F12<=$B12,1,0)) -> 0 | H15: =IF(G12="",0,IF(H12<=$B12,1,0)) -> 0
D16: =SUM(D13:D15) -> 1 | F16: =SUM(F13:F15) -> 1 | H16: =SUM(H13:H15) -> 1

Sheet Services Délégués
A1: Retour à l'accueil
A2: EAU | G2: ASSAINISSEMENT | S2: SERVICES MARCHANDS | AA2: PANNEAUX PUBLICITAIRES | AC2: TOTAL
A3: AEV | C3: FPM | E3: PEA | G3: Entretien des voies urbaines | I3: Eclairage public | K3: Collecte et traitement des déchets | M3: Evacuation des eaux usées | O3: Gestion des cimétieres | Q3: Gestion des espaces verts | S3: Gestion des marchés | U3: Gestion des abattoirs | W3: Promotion du tourisme | Y3: Gestions des gares routieres
A4: PREVUES | B4: DELEGUEES | C4: PREVUES | D4: DELEGUEES | E4: PREVUES | F4: DELEGUEES | G4: PREVUS | H4: DELEGUES | I4: PREVUS | J4: DELEGUES | K4: PREVUS | L4: DELEGUES | M4: PREVUS | N4: DELEGUES | O4: PREVUS | P4: DELEGUES | Q4: PREVUS | R4: DELEGUES | S4: PREVUS | T4: DELEGUES | U4: PREVUS | V4: DELEGUES | W4: PREVUS | X4: DELEGUES | Y4: PREVUS | Z4: DELEGUES | AA4: PREVUS | AB4: DELEGUES | AC4: PREVUS | AD4: DELEGUES
A5: 6 | B5: 2 | C5: 247 | D5: 140 | E5: 0 | F5: 0 | G5: 0 | H5: 0 | I5: 0 | J5: 0 | K5: 6 | L5: 6 | M5: 0 | N5: 0 | O5: 0 | P5: 0 | Q5: 0 | R5: 0 | S5: 0 | T5: 0 | U5: 0 | V5: 0 | W5: 1 | X5: 0 | Y5: 0 | Z5: 0 | AA5: 1 | AB5: 1 | AC5: =SUM(A5,C5,E5,G5,I5,K5,M5,O5,Q5,S5,U5,W5,Y5,AA5) -> 261 | AD5: =SUM(B5,D5,F5,H5,J5,L5,N5,P5,R5,T5,V5,X5,Z5,AB5) -> 149

Sheet Autres données
A1: Retour à l'accueil
A2: Données à collecter | D2: Valeurs
A3: Fonctionalité des services de la mairie | C3: Nombre de services prévus. | D3: 9
C4: Nombre de services fonctionnels | D4: 9
A5: Manuel de procédure | C5: Existence du manuel de procédure | D5: OUI
C6: Manuel de procédure actualisé. | D6: NON
A7: Evaluation du personnel | C7: Nombre de personnes évalué | D7: 49
C8: Effectif du personnel | D8: 49
A9: Adequation profil/poste | C9: Nombre de postes occupés dans la commune | D9: 20
C10: Nombre d'agents dont le profil correspond au poste occupé | D10: 16
A11: Données Foncieres | B11: Commission de Gestion foncière (COGEF) | C11: Existence de la COGEF | D11: OUI
C12: Nombre d'Attestation de Détention Coutumiere (ADC) demandé | D12: 16
C13: Nombre d'Attestation de Détention Coutumiere (ADC) traité | D13: 16
B14: Nombre de contentieux fonciers impliquant la commune | D14: 4
A15: Système d'information | C15: Existence d’un système de classement et d’archivage | D15: OUI
C16: Existence d’une personne en charge du classement des archivages
C17: Existence d’un local dédié à l’archivage | D17: OUI
C18: Existence de documents archivés. | D18: OUI
A19: Nombre de délégations | C19: Nombre de délégations de signature pris. | D19: 3
A20: Attributions de pouvoir | C20: Nombre d'attributions de pouvoir pris. | D20: 2
A21: Séances de reddition de comptes | C21: Nombre de séances tenues | D21: 2
C22: Nombre de séances prévues. | D22: 2
A23: Activités spécifiques en faveur des femmes | C23: Nombre d’activités spécifiques réalisées en faveur des femmes | D23: 23
C24: Nombre d’activités réalisées dans le PTA | D24: 115
A25: Informations sur les prestations de la commune | C25: Existence d’un lieu publique dédié à l'informations sur les prestations de la commune | D25: OUI
C26: Existence d'une personne en charge de l'information | D26: OUI
A27: SDAC en cours de validité | C27: Existence ou non d'un SDAC | D27: OUI
A28: PDC en cours de validité | C28: Existence ou non d’un PDC | D28: OUI
A29: Suivi évaluation des PTA/PAI/PAD | C29: Nombre de séances de suivi évaluation des PTA | D29: 2
C30: Nombre de séances de suivi évaluation des PAI | D30: 2
C31: Nombre de séances de suivi évaluation des PAD
A32: Infrastructures économiques et marchandes | C32: Nombre réalisées en année 2019 | D32: 16
C33: Nombre réalisées en année 2018 | D33: 12
A34: TBS | C34: Existence d’un TBS actualisé | D34: OUI
C35: Date d’actualisation | D35: 2019-07-19
A36: Coopération décentralisée | C36: Nombre d’accord actif | D36: 2
C37: Nombre d’activités réalisées provenants de ces accords | D37: 12

Sheet Récapitulatif (hidden)
A1: Données à traiter | C1: Valeurs
A2: Nombre de sessions ordinaires tenues | C2: =COUNTA(CC!C6:C9) -> 4
A3: Nombre de services prévus. | C3: ='Autres données'!D3 -> 9
A4: Nombre de services existant doté en personnel. | C4: ='Autres données'!D4 -> 9
A5: Nombre d’élus du conseil communal | C5: =CC!D4 -> 19
A6: Nombre de conseillers présents à chaque conseil communal | C6: =SUMIF(CC!C6:C9,"<>",CC!B6:B9) -> 73
A7: Existence du manuel de procédure actualisé. | C7: =IF(OR('Autres données'!D5="NON",'Autres données'!D5=""),0,IF('Autres données'!D6="OUI",1,0.5)) -> 0.5
A8: Nombre de fiches d’évaluation du personnel évalué dans l’année. | C8: ='Autres données'!D7 -> 49
A9: Nombre de personnes à évaluer. | C9: ='Autres données'!D8 -> 49
A10: Nombre de commissions permanentes existantes. | C10: =CP!C15 -> 7
A11: Nombre de sessions des commissions permamentes | C11: =SUM(CP!D15,CP!G15,CP!J15,CP!M15,CP!P15,CP!V15,CP!Y15,CP!AB15,CP!AE15,CP!AH15,CP!AK15) -> 77
A12: Nombre présents commission permanente | C12: =SUM(CP!D16,CP!G16,CP!J16,CP!M16,CP!P16,CP!V16,CP!Y16,CP!AB16,CP!AE16,CP!AH16,CP!AK16) -> 187
A13: Nombre de propositions formulées par les commissions permanentes | C13: =SUM(CP!E16,CP!H16,CP!K16,CP!N16,CP!Q16,CP!T16,CP!W16,CP!Z16,CP!AC16,CP!AF16,CP!AI16,CP!AL16) -> 203
A14: Nombre de propositions formulées par les commissions permanentes réalisées. | C14: =SUM(CP!F16,CP!I16,CP!L16,CP!O16,CP!R16,CP!U16,CP!X16,CP!AA16,CP!AD16,CP!AG16,CP!AJ16,CP!AM16) -> 139
A15: Nombre de postes occupés | C15: ='Autres données'!D9 -> 20
A16: Nombre de postes occupés correspondant au profil recherché | C16: ='Autres données'!D10 -> 16
A17: Existence ou non d’un système de documentation et d’archivage | C17: =IF('Autres données'!D15="OUI",1,0) -> 1
A18: Existence ou non d’une personne en charge de la documentation et d’archivage | C18: =IF('Autres données'!D16="OUI",1,0) -> 0
A19: Existence ou non d’un local dédié à la documentation et d’archivage | C19: =IF('Autres données'!D17="OUI",1,0) -> 1
A20: Existence ou non de document archivés. | C20: =IF('Autres données'!D18="OUI",1,0) -> 1
A21: Nombre de services publics susceptibles d’être délégués | C21: ='Services Délégués'!AC5 -> 261
A22: Nombre de services publics délégués dans l’année | C22: ='Services Délégués'!AD5 -> 149
A23: Nombre total de rapports produits dans l’année | C23: =COUNTIF(CC!F6:F9,"=OUI") -> 4
A24: Nombre total de rapports à produire dans l’année. | C24: =C2 -> 4 | D24: nombre de session dans l'année =4
A25: Nombre de réunions de la municipalité | C25: =CC!D3 -> 12
A26: Nombre de réunions prévues | C26: 12 | D26: limité à 12
A27: Nombre total de sessions de conseils d’arrondissement tenues au cours de l’année | C27: =SUM(CA!B3:B50) -> 102 | D27: somme dans CA
A28: Nombre d’arrondissements | C28: 9
A29: Nombre total de réunions de conseils de village tenues au cours de l’année | C29: =SUM(CV!C5:C100) -> 301 | D29: somme d&ns CV
A30: Nombre de villages | C30: 76
A31: Nombre de documents ou d’arrêtés portant délégation de signature pris. | C31: ='Autres données'!D19 -> 3
A32: Nombre de document ou arrêtés portant délégation de pouvoir pris. | C32: ='Autres données'!D20 -> 2
A33: Montant du budget prévisionnel | C33: =Budget!A5 -> 851671398
A34: Montant du Budget Consommé | C34: =E37+C39 -> 495872168
A35: Recette fiscales previsionnelles | C35: =Budget!B5 -> 222528881
A36: Dépenses d'investissement | B36: Ressources propres | C36: =Budget!D5 -> 9350860
B37: Investissement provenant de la coopération décentralisée | C37: =Budget!E5 -> 0 | E37: =SUM(C36:C38) -> 253512365
B38: Autres ressources | C38: =Budget!F5 -> 244161505
A39: Dépenses totales de fonctionnement | C39: =Budget!G5 -> 242359803
A40: Dépenses d'entretien des équipements et ouvrages | C40: =Budget!H5 -> 17585021
A41: Montant des ressources propres de l'année n-1 | C41: =Budget!K5 -> 304526042
A42: Montant des ressources propres de l'année n | C42: =Budget!L5 -> 332683286
A43: Recettes fiscales recouvrées | C43: =Budget!I5 -> 201593378
A44: Montant des cotisations versées à échéance | C44: =Budget!M5 -> 2970000
A45: Montant des cotisations dues à échéance | C45: =Budget!N5 -> 0
A46: Nombre de marchés conclus dans l’année | C46: =Marchés!E5 -> 18
A47: =Marchés!A3 -> Plan de passation des marchés publics publiés | C47: =IF(Marchés!E3="OUI",1,0) -> 1
A48: =Marchés!A4:D4 ->  | C48: =Marchés!E4 -> 0 | D48: =IF(Marchés!E4="",0,IF(Marchés!E4=0,1,0)) -> 1
A49: Nombre de marchés conclus dans l’année et ayant respecté les procédures. | C49: =Marchés!E6 -> 16
A50: Délai moyen de passation des marchés publics communaux | C50: =IF(C46=0,0,D50/C46) -> 0.1666666667 | D50: =SUM(Marchés!$D$16:$XZ$16) -> 3
A51: Nombre de fois où les relevés des délibérations affichés | C51: =COUNTA(CC!E6:E9) -> 4
A52: Délai d’affichage | C52: =SUM(CC!I6:I9)/C2 -> 0.25 | D52: 8 jours maxi aprs la fin de la session
A53: Nombre de séances de reddition de comptes | C53: ='Autres données'!D21 -> 2
A54: Nombre de séances de reddition de comptes prévus. | C54: ='Autres données'!D22 -> 2
A55: Nombre d’actions spécifiques réalisées en faveur des femmes | C55: ='Autres données'!D23 -> 23
A56: Nombre d’actions spécifiques réalisées dans le PTA | C56: ='Autres données'!D24 -> 115
A57: ='Autres données'!C25 -> Existence d’un lieu publique dédié à l'informations sur les prestations de la commune | C57: =IF('Autres données'!D25="OUI",1,0) -> 1
A58: ='Autres données'!C26 -> Existence d'une personne en charge de l'information | C58: =IF('Autres données'!D26="OUI",1,0) -> 1
A59: Nombre de cadres de concertation. | C59: =COUNTA('Cadres de Concertation'!F6:L6) -> 7 | D59: =IF(C59<=0,0,IF(C59>3,1,C59/4)) -> 1
A60: Nombre moyen de réunions du cadre de concertation tenu | C60: =SUM('Cadres de Concertation'!F6:L6)/C59 -> 4.571428571 | D60: =IF(C60<=0.5,0,IF(C60<1.5,0.25,IF(C60<2.5,0.5,IF(C60<4,0.75,1)))) -> 1
A61: Existence ou non d’un SDAC. | C61: =IF('Autres données'!D27="OUI",1,0) -> 1
A62: Existence ou non d’un PDC | C62: =IF('Autres données'!D28="OUI",1,0) -> 1
A63: Montant PAI prévision | C63: =Budget!C5 -> 2400000000
A64: Montant PAI réalisé | C64: =Budget!J5 -> 944975860
A65: Nombre de séances de suivi évaluation des PTA/PAI/PAD | C65: =SUM('Autres données'!D29:D31) -> 4
A66: Nombre d’infrastructures économiques et marchandes réalisées en année n | C66: ='Autres données'!D32 -> 16
A67: Nombre d’infrastructures économiques et marchandes réalisées en année n-1 | C67: ='Autres données'!D33 -> 12
A68: Nombre d'EPC demandé (village) | C68: =SUM(CV!D5:D191) -> 16 | F68: somme
A69: Nombre d'EPC réalisé (Village) | C69: =SUM(CV!E5:E191) -> 16
A70: Nombre de ADC demandé (Commune-Autre données) | C70: ='Autres données'!D12 -> 16
A71: Nombre de ADC réalisé (Commune-Autre données) | C71: ='Autres données'!D13 -> 16
A72: Existence ou inexistence d’un tableau de bord social actualisé | C72: =IF('Autres données'!D34="OUI",1,0) -> 1
A73: Date d’actualisation du tableau de bord social | C73: ='Autres données'!D35 -> 2019-07-19
A74: Existence d'un tableau de bord | C74: ='Autres données'!D34 -> OUI
A75: Nombre d’ accord de coopération décentralisée. | C75: =IF('Autres données'!D36<1,0,IF('Autres données'!D36=1,0.5,1)) -> 1
A76: Nombre d’activités des accords de coopération décentralisées réalisées. | C76: =IF('Autres données'!D37<1,0,IF('Autres données'!D37<3,0.5,1)) -> 1
A77: Nombre de conflits fonciers impliquant la commune | C77: =IF('Autres données'!D14="","",'Autres données'!D14) -> 4 | D77: =IF(C77="",0,IF(C77=0,1,IF(C77<=3,0.75,IF(C77<=8,0.5,IF(C77<=15,0.25,0))))) -> 0.5
A78: Nombre de participation du maire ou de son représentant au CDCC au cours de l’année | C78: =COUNTIF(Tutelle!B5:B6,">0") -> 2 | D78: feuille tutelle (compter le nombre de lignes 5 ou 6 rempli
A79: Nombre de CDCC tenus dans l’année. | C79: =COUNTA(Tutelle!C5:C6) -> 2 | D79: fixer à 2
A80: Nombre total de présence du maire ou de ses adjoints au CDCC | C80: =SUMIF(Tutelle!C5:C6,"<>",Tutelle!B5:B6) -> 6
A81: Nombre total attendu (Maire et ses adjoints) pour toutes les sessions | C81: =C79*Tutelle!C3 -> 6
A82: Nombre d’actes communaux conformes en une année | C82: =Tutelle!D8 -> 204
A83: Nombre d’actes communaux soumis à la tutelle en un an | C83: =Tutelle!D9 -> 204
A84: Le budget est transmis ou pas. | C84: =IF(Tutelle!H2="TRANSMIS",1,0) -> 1
A85: Délai de transmission du budget après adoption par le conseil communal | C85: =IF(Budget!Q5="",0,IF(Budget!Q5<=DATE(Acceuil!P12,3,31),1,0)) -> 0
A86: Délai d'approbation du budget par la tutelle | C86: =IF(OR(Tutelle!H4="",Tutelle!H5=""),0,IF(Tutelle!H5<=EDATE(Tutelle!H4,1),1,0)) -> 1 | D86: si<1mois, 1, 0 sinon
A87: Le compte administratif est transmis ou pas. | C87: =IF(Tutelle!H6="TRANSMIS",1,0) -> 1
A88: Délai de transmission du compte administratif après adoption par le conseil communal | C88: =IF(Tutelle!H7="",0,IF(Tutelle!H7<=DATE(Acceuil!P12+1,6,30),1,0)) -> 1
A89: Délai d'approbation du compte administratif par la tutelle | C89: =IF(OR(Tutelle!H8="",Tutelle!H9=""),0,IF(Tutelle!H9<=EDATE(Tutelle!H8,1),1,0)) -> 0
A90: Nombre de réunions du cadre de concertation prévu (Mairie + SDE) | C90: ='Cadres de Concertation'!C5 -> 4
A91: Nombre de réunions du cadre de concertation tenu (Mairie + SDE) | C91: =COUNTA('Cadres de Concertation'!C7:C18) -> 4 | E91: =C91/C90 -> 1 | F91: =C92/C93 -> 0.703125
A92: Nombre total des membres présents (Mairie + SDE) | C92: =SUMIF('Cadres de Concertation'!C7:C18,"<>",'Cadres de Concertation'!B7:B18) -> 90
A93: Nombre total des membres attendus (Mairie + SDE) | C93: ='Cadres de Concertation'!C4*Récapitulatif!C91 -> 128

Sheet Indicateurs (hidden)
A1: D1 | B1: 1 | C1: Taux de realisation des sessions ordinaires du conseil communal | D1: =Récapitulatif!C2/4 -> 1
B2: 2 | C2: Taux de services fonctionnels | D2: =Récapitulatif!C4/Récapitulatif!C3 -> 1
B3: 3 | C3: Taux de participation des élus aux conseils communaux | D3: =Récapitulatif!C6/(Récapitulatif!C5*Récapitulatif!C2) -> 0.9605263158
B4: 4 | C4: Existance d'un manuel de procedure à jour | D4: =Récapitulatif!C7 -> 0.5
B5: 5 | C5: Taux de personnes évaluées | D5: =Récapitulatif!C8/Récapitulatif!C9 -> 1
B6: 6 | C6: Taux de commissions permanentes fonctionnelles | D6: =((Récapitulatif!C11/Récapitulatif!C10)+(Récapitulatif!C12/CP!AP15)+(Récapitulatif!C14/Récapitulatif!C13))/3 -> 4.228243021
B7: 7 | C7: Taux d'adéquation profil/poste | D7: =Récapitulatif!C16/Récapitulatif!C15 -> 0.8
B8: 8 | C8: Fonctionalité du système de classement et d'archivage | D8: =SUM(Récapitulatif!C17:C20)/4 -> 0.75
B9: 9 | C9: Taux de services publics locaux en gestion déléguée | D9: =Récapitulatif!C22/Récapitulatif!C21 -> 0.5708812261
B10: 10 | C10: Taux de realisation des rapports d'activités du maire | D10: =Récapitulatif!C23/Récapitulatif!C24 -> 1
B11: 11 | C11: Taux de tenu des reunions de municipalité | D11: =Récapitulatif!C25/Récapitulatif!C26 -> 1
B12: 12 | C12: Taux moyen de tenue des sessions du conseil d'arrondissement | D12: =Récapitulatif!C27/Récapitulatif!C28 -> 11.33333333
B13: 13 | C13: Taux moyen de tenue des sessions du conseil de villages | D13: =Récapitulatif!C29/Récapitulatif!C30 -> 3.960526316
B14: 14 | C14: Nombre de délégation de signature du maire aux adjoints | D14: =Récapitulatif!C31 -> 3
B15: 15 | C15: Nombre de délégation de pouvoir éffectué par le maire | D15: =Récapitulatif!C32 -> 2
A16: D2 | B16: 1 | C16: Taux d'éxecution du budget communal | D16: =Récapitulatif!C34/Récapitulatif!C33 -> 0.5822341447
B17: 2 | C17: Taux d'autofinancement des Investissements | D17: =Récapitulatif!C36/Récapitulatif!E37 -> 0.03688522254
B18: 3 | C18: Part des Investissements dans les dépenses totales de la commune | D18: =Récapitulatif!E37/Récapitulatif!C34 -> 0.5112454002
B19: 4 | C19: Part des dépenses d'entretien des équipements et ouvrages dans les depenses de fonctionnement | D19: =Récapitulatif!C40/Récapitulatif!C39 -> 0.07255749832
B20: 5 | C20: Adoption du budget dans les délais | D20: =IF(Tutelle!H3="",0,IF(Tutelle!H3<DATE(Acceuil!P12,1,1),1,0)) -> 1
B21: 6 | C21: Respect du délai de vote du compte administratif | D21: =IF(Tutelle!H7="",0,IF(Tutelle!H7<=DATE(Acceuil!P12,6,30),1,0)) -> 1
B22: 7 | C22: Taux d'accroissement des ressources propres | D22: =(Récapitulatif!C42-Récapitulatif!C41)/Récapitulatif!C41 -> 0.0924625159
B23: 8 | C23: Taux de recouvrement fiscal | D23: =Récapitulatif!C43/Récapitulatif!C35 -> 0.9059200635
B24: 9 | C24: délai moyen de passation des marchés publics communaux | D24: =Récapitulatif!C50/Récapitulatif!C46 -> 0.009259259259
B25: 10 | C25: Existance des plans de passation des marchés validés et publiés | D25: =(Récapitulatif!C47+Récapitulatif!D48)/2 -> 1
B26: 11 | C26: Ratio des marchés publics ayant respecté les procédures | D26: =Récapitulatif!C49/Récapitulatif!C46 -> 0.8888888889
A27: D3 | B27: 1 | C27: Affichage des relevés des décisions du Conseil Communal dans les délai | D27: =((Récapitulatif!C51/Récapitulatif!C2)+Récapitulatif!C52)/2 -> 0.625
B28: 2 | C28: Taux de réalisation des seances de reddition de compte | D28: =Récapitulatif!C53/Récapitulatif!C54 -> 1
B29: 3 | C29: Nombre d'actions spécifiques en faveur des femmes au cours de l'année | D29: =Récapitulatif!C55/Récapitulatif!C56 -> 0.2
B30: 4 | C30: Existance d'un mecanisme d'information du public par rapport aux prestations de la commune | D30: =(Récapitulatif!C57+Récapitulatif!C58)/2 -> 1
B31: 5 | C31: Nombre de cadre de concertation fonctionnel | D31: =(Récapitulatif!D59+Récapitulatif!D60)/2 -> 1
A32: D4 | B32: 1 | C32: Existance d'un SDAC | D32: =Récapitulatif!C61 -> 1
B33: 2 | C33: Existance d'un PDC | D33: =(Récapitulatif!C62+(Récapitulatif!C64/Récapitulatif!C63))/2 -> 0.6968699708
B34: 3 | C34: Nombre de reunions de suivi-évaluation du PTA/PAI/PAD | D34: =Récapitulatif!C65 -> 4
B35: 4 | C35: Taux d'accroissement des infrastructures économiques et marchandes | D35: =(Récapitulatif!C66-Récapitulatif!C67)/Récapitulatif!C67 -> 0.3333333333
B36: 5 | C36: Fonctionalité des organes de gestion fonciere aux niveaux communal et infra communal | D36: =((Récapitulatif!C69/Récapitulatif!C68)+(Récapitulatif!C71/Récapitulatif!C70))/2 -> 1
B37: 6 | C37: Existance d'un tableau de bord social actualisé | D37: =Récapitulatif!C72 -> 1
B38: 7 | C38: Nombre d'accord de cooperation decentralisée mise en œuvre | D38: =(Récapitulatif!C75+Récapitulatif!C76)/2 -> 1
B39: 8 | C39: Taux de paiement des cotisations de la commune à l'intercommunalité | D39: =IF(Récapitulatif!C45=0,0,Récapitulatif!C44/Récapitulatif!C45) -> 0
B40: 9 | C40: Nombre de contentieux fonciers impliquant la Mairie | D40: =Récapitulatif!D77 -> 0.5
A41: D5 | B41: 1 | C41: Nombre de participations au CDCC | D41: =((Récapitulatif!C78/Récapitulatif!C79)+(Récapitulatif!C80/Récapitulatif!C81))/2 -> 1
B42: 2 | C42: Taux de conformité des actes communaux | D42: =IF(Récapitulatif!C83=0,0,Récapitulatif!C82/Récapitulatif!C83) -> 1
B43: 3 | C43: Transmission du budget dans les délais | D43: =SUM(Récapitulatif!C84:C86)/3 -> 0.6666666667
B44: 4 | C44: Transmission du compte administratif dans les délais | D44: =SUM(Récapitulatif!C87:C89)/3 -> 0.6666666667
B45: 5 | C45: Animation d'un cadre de concertation entre le maire et les services déconcentrés communaux | D45: =(Récapitulatif!E91+Récapitulatif!F91)/2 -> 0.8515625
